bitfinex-derivatives/quotes_BNBF0:USTF0_20250807
["timestamp","ask_amount","ask_price","bid_price","bid_amount"]
[1754601568287,0.85454206,782.8,782.07,0.821]
[1754601568489,0.85454206,782.79,782.07,0.821]
[1754601568692,0.85454206,782.78,782.07,0.821]
[1754601568988,0.85454206,782.77,782.07,0.821]
[1754601569288,0.85512252,782.76,782.07,0.821]
[1754601569488,0.85512252,782.75,782.07,0.821]
[1754601569686,0.85512252,782.74,782.07,0.821]
[1754601569888,0.85516596,782.73,782.07,0.821]
[1754601570192,0.22236422,782.9,782.07,0.821]
[1754601570492,0.85533478,782.89,782.07,0.821]
[1754601570688,0.85533478,782.88,782.07,0.821]
[1754601570888,0.85533478,782.87,782.07,0.821]
[1754601571089,0.85533478,782.86,782.07,0.821]
[1754601571393,0.85533478,782.85,782.07,0.821]
[1754601571590,0.85533478,782.84,782.07,0.821]
[1754601571791,0.85533478,782.83,782.07,0.821]
[1754601572092,0.85533478,782.82,782.07,0.821]
[1754601572289,0.85533478,782.81,782.07,0.821]
[1754601572493,0.85533478,782.8,782.07,0.821]
[1754601572691,0.85533478,782.79,782.07,0.821]
[1754601572893,0.85533478,782.78,782.07,0.821]
[1754601573096,0.85533478,782.77,782.07,0.821]
[1754601573295,0.22236422,782.9,782.07,0.821]
[1754601573494,0.85611206,782.89,782.07,0.821]
[1754601573690,0.85611206,782.88,782.07,0.821]
[1754601573895,0.85611206,782.87,782.07,0.821]
[1754601574096,0.85611206,782.86,782.07,0.821]
[1754601574291,0.85611206,782.85,782.07,0.821]
[1754601574497,0.85611206,782.84,782.07,0.821]
[1754601574691,0.85611206,782.83,782.07,0.821]
[1754601574991,0.85611206,782.82,782.07,0.821]
[1754601575191,0.85611206,782.81,782.07,0.821]
[1754601575494,0.85611206,782.8,782.07,0.821]
[1754601575692,0.85611206,782.79,782.07,0.821]
[1754601575893,0.85611206,782.78,782.07,0.821]
[1754601576095,0.85611206,782.77,782.07,0.821]
[1754601576295,0.22236422,782.9,782.07,0.821]
[1754601576597,0.85709136,782.89,782.07,0.821]
[1754601576798,0.85709136,782.88,782.07,0.821]
[1754601577098,0.85709136,782.87,782.07,0.821]
[1754601577397,0.85709136,782.86,782.07,1.67358901]
[1754601577693,0.85709136,782.85,782.08,0.85258901]
[1754601577896,0.85709136,782.84,782.07,1.67358901]
[1754601578092,0.85709136,782.83,782.08,0.85258901]
[1754601578296,0.22236422,782.9,782.08,0.85258901]
[1754601578297,0.85763793,782.82,782.08,0.85258901]
[1754601578493,0.85763781,782.81,782.09,0.85258901]
[1754601578692,0.85763781,782.8,782.09,0.85258901]
[1754601578892,0.85763781,782.79,782.09,0.85258901]
[1754601579094,0.85763781,782.78,782.09,0.85258901]
[1754601579297,0.85763781,782.78,782.07,0.821]
[1754601579298,0.85763781,782.77,782.11,0.85258901]
[1754601579493,0.22236422,782.9,782.12,0.85258901]
[1754601579698,0.85800556,782.89,782.14,0.85258901]
[1754601579898,0.85800556,782.88,782.16,0.85258901]
[1754601580199,0.85800556,782.87,782.16,0.85258901]
[1754601580499,0.85800556,782.86,782.18,0.85258901]
[1754601580695,0.85800556,782.85,782.18,0.85258901]
[1754601580893,0.85800556,782.84,782.18,0.85258901]
[1754601581095,0.85800556,782.83,782.18,0.85258901]
[1754601581297,0.85800556,782.82,782.2,0.85258901]
[1754601581497,0.85800556,782.81,782.2,0.85258901]
[1754601581698,0.22236422,782.9,782.2,0.85258901]
[1754601581699,0.85800556,782.8,782.2,0.85258901]
[1754601581897,0.85800556,782.79,782.2,0.85258901]
[1754601582101,0.85800556,782.78,782.2,0.85258901]
[1754601582301,0.85800556,782.77,782.2,0.85258901]
[1754601582500,0.85800556,782.76,782.22,0.85258901]
[1754601582701,0.85800556,782.75,782.22,0.85258901]
[1754601582903,0.85800556,782.74,782.22,0.85258901]
[1754601583105,0.85800556,782.73,782.23,0.835]
[1754601583301,0.85800556,782.72,782.23,0.835]
[1754601583601,0.85800556,782.71,782.25,0.85258901]
[1754601583802,0.85800556,782.7,782.25,0.85258901]
[1754601584101,0.85800556,782.69,782.25,0.85258901]
[1754601584302,0.85800556,782.68,782.25,0.85258901]
[1754601584506,0.85800556,782.67,782.26,0.85258901]
[1754601584706,0.85800556,782.66,782.26,0.85258901]
[1754601585002,1.07713399,782.9,782.26,0.85258901]
[1754601585209,0.85927405,782.89,782.26,0.85258901]
[1754601585408,0.85927405,782.88,782.27,0.85258901]
[1754601586106,0.85927405,782.87,782.27,0.85258901]
[1754601586404,0.85927405,782.86,782.28,0.85258901]
[1754601586610,0.85927405,782.85,782.28,0.85258901]
[1754601586804,0.85927405,782.84,782.28,0.85258901]
[1754601587005,0.85927405,782.83,782.28,0.85258901]
[1754601587209,0.85927405,782.82,782.28,0.85258901]
[1754601587412,0.85476977,782.87,782.28,0.85258901]
[1754601587710,0.85476977,782.85,782.3,0.85258901]
[1754601588009,0.85954713,782.84,782.3,0.85258901]
[1754601588209,0.85954713,782.83,782.3,0.85258901]
[1754601588410,0.85954713,782.82,782.31,0.695]
[1754601588608,0.85954713,782.81,782.31,1.54758901]
[1754601588912,0.85954713,782.8,782.31,1.54758901]
[1754601589112,0.85954713,782.79,782.31,1.54758901]
[1754601589308,0.85954713,782.78,782.32,0.85258901]
[1754601589608,0.85954713,782.77,782.33,0.85258901]
[1754601589807,0.85954713,782.76,782.33,0.85258901]
[1754601590010,0.85954713,782.75,782.33,0.85258901]
[1754601590208,0.85954713,782.74,782.33,0.85258901]
[1754601590411,0.85954713,782.73,782.33,0.85258901]
[1754601590611,0.85954713,782.72,782.33,0.85258901]
[1754601590911,0.85954713,782.71,782.33,0.85258901]
[1754601591110,0.85954713,782.7,782.33,0.85258901]
[1754601591309,0.85954713,782.69,782.34,0.85258901]
[1754601591512,0.85954713,782.68,782.34,0.85258901]
[1754601591712,0.85954713,782.67,782.34,0.85258901]
[1754601591909,0.85954713,782.66,782.34,0.85258901]
[1754601592211,0.85954713,782.65,782.34,0.85258901]
[1754601592409,0.85954713,782.64,782.35,0.85258901]
[1754601592612,0.85954713,782.63,782.35,0.85258901]
[1754601592812,0.85954713,782.62,782.35,0.85258901]
[1754601593012,0.85954713,782.61,782.35,0.85258901]
[1754601593211,0.85954713,782.6,782.35,0.85258901]
[1754601593411,0.22236422,782.9,782.35,0.85258901]
[1754601593412,0.85954713,782.59,782.35,0.85258901]
[1754601593613,0.85954713,782.58,782.35,0.85258901]
[1754601593812,0.85476977,782.79,782.35,0.85258901]
[1754601594016,0.86028972,782.78,782.35,0.85258901]
[1754601594217,0.86028972,782.77,782.31,0.695]
[1754601594417,0.86028972,782.76,782.31,0.695]
[1754601594617,0.86028972,782.75,782.31,0.695]
[1754601594914,0.86028972,782.74,782.31,0.695]
[1754601595217,0.86028972,782.73,782.31,0.695]
[1754601595420,0.86028972,782.72,782.31,0.695]
[1754601595618,0.86028972,782.71,782.31,0.695]
[1754601595818,0.86028972,782.7,782.31,0.695]
[1754601596019,0.86028972,782.69,782.31,0.695]
[1754601596218,0.86028972,782.68,782.31,0.695]
[1754601596421,0.22236422,782.9,782.31,0.695]
[1754601596716,0.86049011,782.89,782.31,0.695]
[1754601596919,0.22236422,782.9,782.31,0.695]
[1754601597218,0.86048596,782.89,782.31,0.695]
[1754601597419,0.86048596,782.88,782.31,0.695]
[1754601597618,0.86048596,782.87,782.31,0.695]
[1754601597818,0.86048596,782.86,782.31,0.695]
[1754601598021,0.86048596,782.85,782.31,0.695]
[1754601598217,0.86048596,782.84,782.31,0.695]
[1754601598518,0.86048596,782.83,782.31,0.695]
[1754601598716,0.86048596,782.82,782.31,0.695]
[1754601598916,0.86048596,782.81,782.31,0.695]
[1754601599217,0.86048596,782.8,782.31,0.695]
[1754601599421,0.86048596,782.79,782.31,0.695]
[1754601599621,0.86048596,782.78,782.31,0.695]
[1754601599821,0.86048596,782.77,782.31,0.695]
[1754601600021,0.86048596,782.76,782.31,0.695]
[1754601600317,0.86048596,782.75,782.31,0.695]
[1754601600622,0.86048596,782.74,782.31,0.695]
[1754601600819,0.86048596,782.73,782.31,0.695]
[1754601601019,0.86048596,782.72,782.31,0.695]
[1754601601219,0.86048596,782.71,782.31,0.695]
[1754601601419,0.86048596,782.7,782.31,0.695]
[1754601601622,0.86048596,782.69,782.31,0.695]
[1754601601819,0.22236422,782.9,782.31,0.695]
[1754601602019,0.86049689,782.89,782.31,0.695]
[1754601602222,0.86049689,782.88,782.31,0.695]
[1754601602424,0.86049689,782.87,782.31,0.695]
[1754601602618,0.86049689,782.86,782.31,0.695]
[1754601602822,0.86049689,782.85,782.31,0.695]
[1754601603019,0.86049689,782.84,782.31,0.695]
[1754601603224,0.86049689,782.83,782.31,0.695]
[1754601603422,0.86049689,782.82,782.31,0.695]
[1754601603621,0.86049689,782.81,782.23,0.835]
[1754601603820,0.86049689,782.8,782.23,0.835]
[1754601604123,0.86049689,782.79,782.25,0.85258901]
[1754601604323,0.86049689,782.78,782.25,0.85258901]
[1754601604523,0.22236422,782.9,782.25,0.85258901]
[1754601604919,0.86049911,782.89,782.25,0.85258901]
[1754601605120,0.86049911,782.88,782.25,0.85258901]
[1754601605323,0.86049911,782.87,782.25,0.85258901]
[1754601605624,0.86049911,782.86,782.28,0.85258901]
[1754601605820,0.86049911,782.85,782.28,0.85258901]
[1754601606125,0.86049911,782.84,782.28,0.85258901]
[1754601606424,0.86049911,782.83,782.27,0.85258901]
[1754601606621,0.86049911,782.82,782.29,0.786]
[1754601606819,0.86049911,782.81,782.29,0.786]
[1754601607023,0.86049911,782.8,782.29,0.786]
[1754601607223,0.85476977,782.89,782.29,0.786]
[1754601607224,0.86049911,782.79,782.29,0.786]
[1754601607524,0.86049911,782.78,782.29,0.786]
[1754601607723,0.86049911,782.77,782.3,0.689]
[1754601608019,0.86049911,782.76,782.3,0.689]
[1754601608225,0.86049911,782.75,782.3,0.689]
[1754601608421,0.86049911,782.74,782.3,0.689]
[1754601608721,0.86049911,782.73,782.31,1.021]
[1754601608925,0.86049911,782.72,782.31,1.021]
[1754601609126,0.86049911,782.71,782.31,1.021]
[1754601609325,0.86049911,782.7,782.31,1.021]
[1754601609525,0.86049911,782.69,782.31,1.021]
[1754601609722,0.86049911,782.68,782.31,1.021]
[1754601609922,0.86049911,782.67,782.31,1.021]
[1754601610122,0.86049911,782.66,782.31,1.021]
[1754601610325,0.86049911,782.65,782.31,1.021]
[1754601610526,0.86049911,782.64,782.31,1.021]
[1754601610722,0.86049911,782.63,782.31,1.021]
[1754601611025,0.86049911,782.62,782.31,1.021]
[1754601611222,0.86049911,782.61,782.31,1.021]
[1754601611421,0.86049911,782.6,782.31,1.021]
[1754601611621,0.86049911,782.59,782.31,1.021]
[1754601611826,0.86049911,782.58,782.31,1.021]
[1754601612025,0.86049911,782.57,782.31,1.021]
[1754601612225,0.86049911,782.56,782.31,1.021]
[1754601612423,0.86049911,782.55,782.31,1.021]
[1754601612621,0.86049911,782.54,782.31,1.021]
[1754601612826,0.86049911,782.53,782.31,1.021]
[1754601613022,0.86049911,782.52,782.31,1.021]
[1754601613223,0.86049911,782.51,782.31,1.021]
[1754601613425,0.86049911,782.5,782.31,1.021]
[1754601613727,0.86204662,782.79,782.31,1.021]
[1754601613925,0.86015545,782.78,782.31,1.021]
[1754601614125,0.86015545,782.77,782.31,1.021]
[1754601614326,0.86015545,782.76,782.31,1.021]
[1754601614523,0.86015545,782.75,782.31,1.021]
[1754601614724,0.86015545,782.74,782.31,1.021]
[1754601614923,0.86015545,782.73,782.31,1.021]
[1754601615127,0.86015545,782.72,782.31,1.021]
[1754601615329,0.86015545,782.71,782.31,1.021]
[1754601615625,0.86015545,782.7,782.31,1.021]
[1754601615926,0.86015545,782.69,782.31,1.021]
[1754601616130,0.86015545,782.68,782.31,1.021]
[1754601616429,0.86015545,782.67,782.31,1.021]
[1754601616627,0.86015545,782.66,782.31,1.021]
[1754601616829,0.86015545,782.65,782.31,1.021]
[1754601617127,0.86015545,782.64,782.31,1.021]
[1754601617325,0.86015545,782.63,782.31,1.021]
[1754601617529,0.86015545,782.62,782.31,1.021]
[1754601617729,0.22236422,782.9,782.31,1.021]
[1754601617730,0.86015545,782.61,782.31,1.021]
[1754601617929,0.86015545,782.6,782.31,1.021]
[1754601618131,0.86015545,782.59,782.31,1.021]
[1754601618330,0.86015545,782.58,782.31,1.021]
[1754601618526,0.86015545,782.57,782.31,1.021]
[1754601618732,0.86015545,782.56,782.31,1.021]
[1754601618932,0.86015545,782.55,782.31,1.021]
[1754601619232,0.86015545,782.54,782.31,1.021]
[1754601619433,0.86015545,782.53,782.31,1.021]
[1754601619628,0.22236422,782.9,782.31,1.021]
[1754601619629,0.86015545,782.52,782.31,1.021]
[1754601619833,0.86015545,782.51,782.31,1.021]
[1754601620031,0.86204662,782.77,782.31,1.021]
[1754601620231,0.85931009,782.76,782.31,1.021]
[1754601620431,0.85931009,782.75,782.31,1.021]
[1754601620632,0.85931009,782.74,782.31,1.021]
[1754601620931,0.85931009,782.73,782.31,1.021]
[1754601621130,0.85931009,782.72,782.31,1.021]
[1754601621330,0.85931009,782.71,782.31,1.021]
[1754601621638,0.85931009,782.7,782.31,1.021]
[1754601621829,0.85931009,782.69,782.31,1.021]
[1754601622032,0.85931009,782.68,782.31,1.021]
[1754601622228,0.85931009,782.67,782.31,1.021]
[1754601622432,0.85931009,782.66,782.31,1.021]
[1754601622729,0.86204662,782.81,782.31,1.021]
[1754601622730,0.85931009,782.65,782.31,1.021]
[1754601622929,0.85931009,782.64,782.31,1.021]
[1754601623130,0.85920451,782.63,782.31,1.021]
[1754601623331,0.85920451,782.62,782.31,1.021]
[1754601623532,0.86204662,782.84,782.31,1.021]
[1754601623735,1.72124327,782.83,782.31,1.021]
[1754601624029,1.72124327,782.82,782.31,1.021]
[1754601624230,0.85919665,782.81,782.31,1.021]
[1754601624528,0.85919665,782.8,782.31,1.021]
[1754601624733,0.85919665,782.79,782.31,1.021]
[1754601624930,0.86204662,782.83,782.31,1.021]
[1754601624931,0.85919665,782.78,782.31,1.021]
[1754601625233,0.85919665,782.77,782.31,1.021]
[1754601625433,0.85919665,782.76,782.31,1.021]
[1754601625631,0.85919665,782.75,782.3,0.689]
[1754601625835,0.85919665,782.74,782.3,0.689]
[1754601626036,0.85918524,782.73,782.3,0.689]
[1754601626236,0.85918524,782.72,782.3,0.689]
[1754601626432,0.85918524,782.71,782.3,0.689]
[1754601626637,0.85918524,782.7,782.3,0.689]
[1754601626933,0.85918524,782.69,782.3,0.689]
[1754601627132,0.85918524,782.68,782.3,0.689]
[1754601627331,0.85918524,782.67,782.3,0.689]
[1754601627537,0.85918524,782.66,782.3,0.689]
[1754601627736,0.85918524,782.65,782.3,0.689]
[1754601627935,0.85918524,782.64,782.3,0.689]
[1754601628134,0.85918524,782.63,782.3,0.689]
[1754601628335,0.85918524,782.62,782.3,0.689]
[1754601628531,0.85918524,782.61,782.3,0.689]
[1754601628731,0.85918524,782.6,782.3,0.689]
[1754601628937,0.85918524,782.59,782.3,0.689]
[1754601629140,0.85918524,782.58,782.3,0.689]
[1754601629437,0.85918524,782.57,782.3,0.689]
[1754601629734,0.85918524,782.56,782.31,0.908]
[1754601629933,0.85918524,782.55,782.31,0.908]
[1754601630137,0.85918524,782.54,782.31,0.908]
[1754601630333,0.85918524,782.53,782.31,0.908]
[1754601630637,0.85918524,782.52,782.31,0.908]
[1754601630933,0.85918524,782.51,782.31,0.908]
[1754601631135,0.85918524,782.5,782.31,0.908]
[1754601631332,0.85918524,782.49,782.31,0.908]
[1754601631534,0.85918524,782.48,782.31,0.908]
[1754601631733,0.85918524,782.47,782.31,0.908]
[1754601631933,0.85918524,782.46,782.31,0.908]
[1754601632136,0.86204662,782.69,782.31,0.908]
[1754601632338,0.85906193,782.68,782.31,0.908]
[1754601632637,0.85906193,782.67,782.31,0.908]
[1754601632834,0.8589126,782.66,782.31,0.908]
[1754601633032,0.8589126,782.65,782.31,0.908]
[1754601633239,0.8589126,782.64,782.31,0.908]
[1754601633438,0.8589126,782.63,782.31,0.908]
[1754601633737,0.8589126,782.62,782.31,0.908]
[1754601633937,0.8589126,782.61,782.31,0.908]
[1754601634139,0.8589126,782.6,782.31,0.908]
[1754601634338,0.8589126,782.59,782.31,0.908]
[1754601634535,0.8589126,782.58,782.31,0.908]
[1754601634738,0.22236422,782.9,782.31,0.908]
[1754601634739,0.8589126,782.57,782.31,0.908]
[1754601634935,0.8589126,782.56,782.31,0.908]
[1754601635139,0.8589126,782.55,782.31,0.908]
[1754601635340,0.8589126,782.54,782.31,0.908]
[1754601635541,0.8589126,782.53,782.31,0.908]
[1754601635740,0.8589126,782.52,782.31,0.908]
[1754601635940,0.8589126,782.51,782.31,0.908]
[1754601636137,0.8589126,782.5,782.31,0.908]
[1754601636436,0.8589126,782.49,782.31,0.908]
[1754601636647,0.8589126,782.48,782.31,0.908]
[1754601636837,0.8589126,782.47,782.31,0.908]
[1754601637037,0.8589126,782.46,782.31,0.908]
[1754601637238,0.86204662,782.7,782.31,0.908]
[1754601637435,0.85837099,782.69,782.31,0.908]
[1754601637637,0.85837099,782.68,782.31,0.908]
[1754601637940,0.85837099,782.67,782.31,0.908]
[1754601638235,0.85837099,782.66,782.31,0.908]
[1754601638441,0.85837099,782.65,782.31,0.908]
[1754601638634,0.85837099,782.64,782.31,0.908]
[1754601638936,0.85837099,782.63,782.31,0.908]
[1754601639135,0.85837099,782.62,782.31,0.908]
[1754601639437,0.85837099,782.61,782.32,0.78]
[1754601639635,0.85837099,782.6,782.32,0.78]
[1754601639842,0.85837099,782.59,782.32,0.78]
[1754601640140,0.85837099,782.58,782.32,0.78]
[1754601640341,0.85837099,782.57,782.32,0.78]
[1754601640540,0.85837099,782.56,782.32,0.78]
[1754601640740,0.85837099,782.55,782.32,0.78]
[1754601641040,0.85837099,782.54,782.32,0.78]
[1754601641240,0.86204662,782.75,782.32,0.78]
[1754601641440,0.85836838,782.74,782.32,0.78]
[1754601641640,0.85836838,782.73,782.32,0.78]
[1754601641942,0.86204662,782.85,782.32,0.78]
[1754601642145,0.86204662,782.78,782.32,0.78]
[1754601642340,0.85850388,782.77,782.32,0.78]
[1754601642541,0.86204662,782.6,782.32,0.78]
[1754601642841,0.86204662,782.58,782.32,0.78]
[1754601643046,0.86204662,782.54,782.32,0.78]
[1754601643343,0.86204662,782.5,782.32,0.78]
[1754601643548,0.85850388,782.49,782.32,0.78]
[1754601643748,0.85850388,782.48,782.32,0.78]
[1754601643946,0.85850388,782.47,782.32,0.78]
[1754601644147,0.85850388,782.46,782.32,0.78]
[1754601644346,0.85850388,782.45,782.32,0.78]
[1754601644648,0.85850388,782.44,782.32,0.78]
[1754601644845,0.85850388,782.43,782.32,0.78]
[1754601645149,0.85850388,782.42,782.32,0.78]
[1754601645346,0.85850388,782.41,782.32,0.78]
[1754601645545,0.85850388,782.4,782.32,0.78]
[1754601645745,0.85850388,782.39,782.32,0.78]
[1754601646045,0.85850388,782.38,782.32,0.78]
[1754601646249,0.85850388,782.37,782.32,0.78]
[1754601646549,0.85850388,782.36,782.32,0.78]
[1754601646749,0.85850388,782.35,782.32,0.78]
[1754601646945,0.85850388,782.34,782.32,0.78]
[1754601647146,0.85850388,782.33,782.32,0.78]
[1754601650649,0.85638576,782.33,782.32,0.78]
[1754601651249,0.85640559,782.54,782.32,0.78]
[1754601651746,0.85622952,782.53,782.32,0.78]
[1754601651949,0.85622952,782.52,782.32,0.78]
[1754601652248,0.85622952,782.51,782.32,0.78]
[1754601652447,0.85622952,782.5,782.32,0.78]
[1754601652648,0.85622952,782.49,782.32,0.78]
[1754601652844,0.85622952,782.48,782.32,0.78]
[1754601653045,0.85622952,782.47,782.32,0.78]
[1754601653244,0.85622952,782.46,782.32,0.78]
[1754601653449,0.85622952,782.45,782.32,0.78]
[1754601653644,0.85622952,782.44,782.32,0.78]
[1754601653848,0.85622952,782.43,782.32,0.78]
[1754601654048,0.85622952,782.42,782.32,0.78]
[1754601654249,0.85622952,782.41,782.32,0.78]
[1754601654444,0.85870673,782.87,782.32,0.78]
[1754601654744,0.8557839,782.86,782.32,0.78]
[1754601654948,0.8557839,782.85,782.32,0.78]
[1754601655148,0.85870673,782.83,782.32,0.78]
[1754601655346,0.8557839,782.82,782.32,0.78]
[1754601655649,0.8557839,782.81,782.32,0.78]
[1754601655850,0.85870673,782.85,782.32,0.78]
[1754601655851,0.8557839,782.8,782.32,0.78]
[1754601656049,0.8557839,782.79,782.32,0.78]
[1754601656248,0.85870673,782.75,782.32,0.78]
[1754601656444,0.8557839,782.74,782.31,0.908]
[1754601656647,0.8557839,782.73,782.31,0.908]
[1754601656850,0.8557839,782.72,782.31,0.908]
[1754601657048,0.8557839,782.71,782.31,0.908]
[1754601657251,0.8557839,782.7,782.31,0.908]
[1754601657451,0.85870673,782.77,782.31,0.908]
[1754601658046,0.85870673,782.78,782.31,0.908]
[1754601659759,0.85870673,782.78,782.32,0.898]
[1754601660050,0.85870673,782.79,782.32,0.898]
[1754601660749,0.85870673,782.8,782.32,0.898]
[1754601661749,0.85870673,782.79,782.32,0.898]
[1754601663253,0.85870673,782.78,782.32,0.898]
[1754601664352,0.85870673,782.86,782.32,0.898]
[1754601665056,0.85610515,782.85,782.32,0.898]
[1754601665255,0.85610515,782.84,782.32,0.898]
[1754601665852,0.85610515,782.83,782.32,0.898]
[1754601666153,0.85610515,782.82,782.32,0.898]
[1754601666357,0.85610515,782.81,782.32,0.898]
[1754601666558,0.85610515,782.8,782.32,0.898]
[1754601666854,0.8562909,782.79,782.32,0.898]
[1754601667157,0.8562909,782.78,782.32,0.898]
[1754601667456,0.8562909,782.77,782.32,0.898]
[1754601667657,0.8562909,782.76,782.32,0.898]
[1754601667858,0.8562909,782.75,782.32,0.898]
[1754601668059,0.8562909,782.74,782.32,0.898]
[1754601668256,0.8562909,782.73,782.32,0.898]
[1754601668454,0.8562909,782.72,782.32,0.898]
[1754601668660,0.8562909,782.71,782.32,0.898]
[1754601668859,0.8562909,782.7,782.32,0.898]
[1754601669059,0.8562909,782.69,782.32,0.898]
[1754601669255,0.8562909,782.68,782.32,0.898]
[1754601669458,0.8562909,782.67,782.32,0.898]
[1754601669659,0.8562909,782.66,782.32,0.898]
[1754601669959,0.8562909,782.65,782.33,0.878]
[1754601670256,0.8562909,782.64,782.33,0.878]
[1754601670459,0.8562909,782.63,782.33,0.878]
[1754601670656,0.8562909,782.62,782.33,0.878]
[1754601670860,0.8562909,782.61,782.33,0.878]
[1754601671061,0.8562909,782.6,782.33,0.878]
[1754601671360,0.8562909,782.59,782.33,0.878]
[1754601671657,0.8562909,782.58,782.33,0.878]
[1754601671861,0.8562909,782.57,782.33,0.878]
[1754601672061,0.8562909,782.56,782.33,0.878]
[1754601672258,0.8562909,782.55,782.33,0.878]
[1754601672561,0.8562909,782.54,782.33,0.878]
[1754601672761,0.8562909,782.53,782.33,0.878]
[1754601673055,0.8562909,782.52,782.33,0.878]
[1754601673257,0.85870673,782.67,782.33,0.878]
[1754601673258,0.8562909,782.51,782.33,0.878]
[1754601673462,0.8562909,782.5,782.33,0.878]
[1754601673757,0.8562909,782.49,782.33,0.878]
[1754601674057,0.8562909,782.48,782.33,0.878]
[1754601674257,0.8562909,782.47,782.33,0.878]
[1754601674461,0.8562909,782.46,782.33,0.878]
[1754601674662,0.85870673,782.57,782.33,0.878]
[1754601674859,0.85870673,782.53,782.33,0.878]
[1754601675061,0.85699042,782.52,782.33,0.878]
[1754601675664,0.85699042,782.51,782.33,0.878]
[1754601675863,0.85699042,782.5,782.33,0.878]
[1754601676163,0.85699042,782.49,782.33,0.878]
[1754601676459,0.85699042,782.48,782.33,0.878]
[1754601676659,0.85699042,782.47,782.33,0.878]
[1754601676861,0.85699042,782.46,782.33,0.878]
[1754601677060,0.85699042,782.45,782.33,0.878]
[1754601677261,0.85699042,782.44,782.33,0.878]
[1754601677462,0.85699042,782.43,782.33,0.878]
[1754601677661,0.85699042,782.42,782.33,0.878]
[1754601677864,0.85699042,782.41,782.33,0.878]
[1754601678067,0.85699042,782.4,782.33,0.878]
[1754601678361,0.85699042,782.39,782.33,0.878]
[1754601678566,0.85699042,782.38,782.33,0.878]
[1754601678862,0.85699042,782.37,782.33,0.878]
[1754601679066,0.85699042,782.36,782.33,0.878]
[1754601679270,0.85699042,782.35,782.33,0.878]
[1754601679470,0.85699042,782.34,782.33,0.878]
[1754601684069,1.7157185,782.74,782.33,0.878]
[1754601684269,1.7157185,782.73,782.33,0.878]
[1754601684469,0.85701177,782.72,782.33,0.878]
[1754601684764,0.85701177,782.71,782.33,0.878]
[1754601684968,0.85701177,782.7,782.33,0.878]
[1754601685164,0.85701177,782.69,782.33,0.878]
[1754601685368,0.85701177,782.68,782.33,0.878]
[1754601685568,0.85701177,782.67,782.33,0.878]
[1754601685769,0.85701177,782.66,782.33,0.878]
[1754601685967,0.85701177,782.65,782.33,0.878]
[1754601686164,0.85701177,782.64,782.33,0.878]
[1754601686367,0.85701177,782.63,782.33,0.878]
[1754601686565,0.85701177,782.62,782.33,0.878]
[1754601686768,0.85701177,782.61,782.33,0.878]
[1754601686968,0.85701177,782.6,782.33,0.878]
[1754601687168,0.85731279,782.59,782.33,0.878]
[1754601687370,0.85731279,782.58,782.33,0.878]
[1754601687570,0.85731279,782.57,782.33,0.878]
[1754601687867,0.85731279,782.56,782.33,0.878]
[1754601688069,0.85731279,782.55,782.33,0.878]
[1754601688270,0.85731279,782.54,782.33,0.878]
[1754601688466,0.85731279,782.53,782.33,0.878]
[1754601688670,0.85731279,782.52,782.33,0.878]
[1754601688867,0.85731279,782.51,782.33,0.878]
[1754601689068,0.85731279,782.5,782.33,0.878]
[1754601689374,0.85731279,782.49,782.33,0.878]
[1754601689673,0.85870673,782.77,782.33,0.878]
[1754601689674,0.85731279,782.48,782.33,0.878]
[1754601689969,0.85731279,782.47,782.33,0.878]
[1754601690169,0.85731279,782.46,782.33,0.878]
[1754601690371,0.85731279,782.45,782.33,0.878]
[1754601690574,0.85870673,782.76,782.33,0.878]
[1754601690774,0.85809734,782.75,782.33,0.878]
[1754601690975,0.85809734,782.74,782.27,0.704]
[1754601691175,0.85809734,782.73,782.27,0.704]